{"text_format":"3","workbook":"xlsx","n_sheets":1,"sheets":["Давление и уровень глюкозы"],"not_rendered":{"defined_names":9},"read":"whole","date_system":"1900"}

{"sheet":"Давление и уровень глюкозы","index":0,"n_rows":13,"n_cols":11,"rows_kept":13,"merged":[[0,1,4,3],[0,4,0,9],[1,4,1,6],[1,7,1,9]]}
[null,"Журнал учета кровяного давления и уровня глюкозы",null,null,"Настройте шкалы в ячейках E2–J5 ниже."]
[{"$nulls":4},"КРОВЯНОЕ ДАВЛЕНИЕ",null,null,"УРОВЕНЬ ГЛЮКОЗЫ"]
[{"$nulls":4},120,"СИСТОЛИЧЕСКОЕ",140,70,100,150]
[{"$nulls":4},80,"ДИАСТОЛИЧЕСКОЕ",90,"НИЗКИЙ","НОРМАЛЬНЫЙ","ВЫСОКИЙ"]
[{"$nulls":4},"НОРМАЛЬНЫЙ УРОВЕНЬ",null,"ТРЕБУЕТСЯ КОНСУЛЬТАЦИЯ ВРАЧА"]
[null,"Дата","Время","Описание","Систолическое","Диастолическое","Пульс","Глюкоза","Уровень","Состояние","Заметки"]
[null,{"$f":"TODAY()","v":"2022-08-03"},"06:00:00","Сразу после сна",129,79,72,55,{"$f":"КровяноеДавлениеИУровеньГлюкозы[[#This Row],[Глюкоза]]","v":55},{"$f":"IFERROR(IF(КровяноеДавлениеИУровеньГлюкозы[[#This Row],[Уровень]]=0,\"\",IF(КровяноеДавлениеИУровеньГлюкозы[[#This Row],[Уровень]]<=Г_Низ,\"Низкий\",IF(AND(КровяноеДавлениеИУровеньГлюкозы[[#This Row],[Уровень]]>Г_Низ,КровяноеДавлениеИУровеньГлюкозы[[#This Row],[Уровень]]<Г_Выс),\"Нормальный\",\"Высокий\"))), \"\")","v":"Низкий"}]
[null,{"$f":"TODAY()","v":"2022-08-03"},"07:00:00","Перед едой",120,80,74,70,{"$f":"КровяноеДавлениеИУровеньГлюкозы[[#This Row],[Глюкоза]]","v":70},{"$f":"IFERROR(IF(КровяноеДавлениеИУровеньГлюкозы[[#This Row],[Уровень]]=0,\"\",IF(КровяноеДавлениеИУровеньГлюкозы[[#This Row],[Уровень]]<=Г_Низ,\"Низкий\",IF(AND(КровяноеДавлениеИУровеньГлюкозы[[#This Row],[Уровень]]>Г_Низ,КровяноеДавлениеИУровеньГлюкозы[[#This Row],[Уровень]]<Г_Выс),\"Нормальный\",\"Высокий\"))), \"\")","v":"Низкий"}]
[null,"2022-08-03","09:00:00","После еды",133,80,75,75,{"$f":"КровяноеДавлениеИУровеньГлюкозы[[#This Row],[Глюкоза]]","v":75},{"$f":"IFERROR(IF(КровяноеДавлениеИУровеньГлюкозы[[#This Row],[Уровень]]=0,\"\",IF(КровяноеДавлениеИУровеньГлюкозы[[#This Row],[Уровень]]<=Г_Низ,\"Низкий\",IF(AND(КровяноеДавлениеИУровеньГлюкозы[[#This Row],[Уровень]]>Г_Низ,КровяноеДавлениеИУровеньГлюкозы[[#This Row],[Уровень]]<Г_Выс),\"Нормальный\",\"Высокий\"))), \"\")","v":"Нормальный"}]
[null,"2022-08-03","10:00:00","Только давление",143,91,75,190,{"$f":"КровяноеДавлениеИУровеньГлюкозы[[#This Row],[Глюкоза]]","v":190},{"$f":"IFERROR(IF(КровяноеДавлениеИУровеньГлюкозы[[#This Row],[Уровень]]=0,\"\",IF(КровяноеДавлениеИУровеньГлюкозы[[#This Row],[Уровень]]<=Г_Низ,\"Низкий\",IF(AND(КровяноеДавлениеИУровеньГлюкозы[[#This Row],[Уровень]]>Г_Низ,КровяноеДавлениеИУровеньГлюкозы[[#This Row],[Уровень]]<Г_Выс),\"Нормальный\",\"Высокий\"))), \"\")","v":"Высокий"}]
[null,"2022-08-03","12:00:00","Перед едой",141,84,70,140,{"$f":"КровяноеДавлениеИУровеньГлюкозы[[#This Row],[Глюкоза]]","v":140},{"$f":"IFERROR(IF(КровяноеДавлениеИУровеньГлюкозы[[#This Row],[Уровень]]=0,\"\",IF(КровяноеДавлениеИУровеньГлюкозы[[#This Row],[Уровень]]<=Г_Низ,\"Низкий\",IF(AND(КровяноеДавлениеИУровеньГлюкозы[[#This Row],[Уровень]]>Г_Низ,КровяноеДавлениеИУровеньГлюкозы[[#This Row],[Уровень]]<Г_Выс),\"Нормальный\",\"Высокий\"))), \"\")","v":"Нормальный"}]
[null,{"$f":"TODAY()","v":"2022-08-03"},"15:00:00","После еды",132,80,68,90,{"$f":"КровяноеДавлениеИУровеньГлюкозы[[#This Row],[Глюкоза]]","v":90},{"$f":"IFERROR(IF(КровяноеДавлениеИУровеньГлюкозы[[#This Row],[Уровень]]=0,\"\",IF(КровяноеДавлениеИУровеньГлюкозы[[#This Row],[Уровень]]<=Г_Низ,\"Низкий\",IF(AND(КровяноеДавлениеИУровеньГлюкозы[[#This Row],[Уровень]]>Г_Низ,КровяноеДавлениеИУровеньГлюкозы[[#This Row],[Уровень]]<Г_Выс),\"Нормальный\",\"Высокий\"))), \"\")","v":"Нормальный"},"Принять лекарство от давления во время еды"]
[null,"Средние значения",null,null,{"$f":"SUBTOTAL(101,КровяноеДавлениеИУровеньГлюкозы[Систолическое])","v":133},{"$f":"SUBTOTAL(101,КровяноеДавлениеИУровеньГлюкозы[Диастолическое])","v":{"v":82.33333333333333,"d":"82"}},{"$f":"SUBTOTAL(101,КровяноеДавлениеИУровеньГлюкозы[Пульс])","v":{"v":72.33333333333333,"d":"72"}},{"$f":"SUBTOTAL(101,КровяноеДавлениеИУровеньГлюкозы[Глюкоза])","v":{"v":103.33333333333333,"d":"103"}}]